[Event "Titled Tuesday Blitz December 7 2021"]
[White "Starozhilov, Leonid"]
[Black "Lomaia, Diana"]
[WhiteFideId "14106752"]
[BlackFideId "13612476"]
[WhiteElo "2780"]
[BlackElo "2446"]
[Result "0-1"]
[Round "01"]
[TimeControl "180+1"]
[Date "2021.12.07"]
[WhiteClock "0:00:03"]
[BlackClock "0:00:25"]

1. e4 {[%clk 0:03:00]}  c5 {[%clk 0:02:59]} 2. Nf3 {[%clk 0:03:00]}  Nc6 {[%clk 0:03:00]} 3. Bb5 {[%clk 0:03:00]}  g6 {[%clk 0:03:00]} 4. O-O {[%clk 0:03:00]}  Bg7 {[%clk 0:03:00]} 5. Nc3 {[%clk 0:03:00]}  Nf6 {[%clk 0:03:01]} 6. Re1 {[%clk 0:02:58]}  O-O {[%clk 0:02:58]} 7. Bxc6 {[%clk 0:02:57]}  dxc6 {[%clk 0:02:58]} 8. d3 {[%clk 0:02:58]}  Qc7 {[%clk 0:02:48]} 9. h3 {[%clk 0:02:57]}  b6 {[%clk 0:02:44]} 10. Bg5 {[%clk 0:02:54]}  h6 {[%clk 0:02:43]} 11. Bh4 {[%clk 0:02:54]}  Nh5 {[%clk 0:02:40]} 12. Rb1 {[%clk 0:02:31]}  a5 {[%clk 0:02:35]} 13. Nd2 {[%clk 0:02:29]}  b5 {[%clk 0:02:31]} 14. Ne2 {[%clk 0:02:27]}  Rd8 {[%clk 0:02:27]} 15. g4 {[%clk 0:02:21]}  Nf4 {[%clk 0:02:25]} 16. Nxf4 {[%clk 0:02:20]}  Qxf4 {[%clk 0:02:23]} 17. Bxe7 {[%clk 0:02:19]}  Re8 {[%clk 0:02:20]} 18. Bxc5 {[%clk 0:02:18]}  h5 {[%clk 0:02:20]} 19. Be3 {[%clk 0:02:16]}  Qc7 {[%clk 0:02:16]} 20. Qf3 {[%clk 0:02:09]}  hxg4 {[%clk 0:02:14]} 21. hxg4 {[%clk 0:02:10]}  c5 {[%clk 0:02:10]} 22. Kg2 {[%clk 0:02:06]}  c4 {[%clk 0:02:09]} 23. Rh1 {[%clk 0:01:58]}  Bb7 {[%clk 0:02:07]} 24. Bg5 {[%clk 0:01:52]}  Qe5 {[%clk 0:02:01]} 25. Bf4 {[%clk 0:01:50]}  Qe6 {[%clk 0:02:00]} 26. g5 {[%clk 0:01:25]}  Rad8 {[%clk 0:01:57]} 27. Qh3 {[%clk 0:01:19]}  cxd3 {[%clk 0:01:52]} 28. cxd3 {[%clk 0:01:18]}  Qxa2 {[%clk 0:01:47]} 29. Rbc1 {[%clk 0:01:09]}  Qe6 {[%clk 0:01:40]} 30. Qh7+ {[%clk 0:01:05]}  Kf8 {[%clk 0:01:40]} 31. Rc7 {[%clk 0:01:04]}  Rd7 {[%clk 0:01:35]} 32. Rhc1 {[%clk 0:00:40]}  Ba8 {[%clk 0:01:20]} 33. Qh2 {[%clk 0:00:20]}  Rxd3 {[%clk 0:01:16]} 34. f3 {[%clk 0:00:16]}  Red8 {[%clk 0:01:11]} 35. R1c2 {[%clk 0:00:15]}  b4 {[%clk 0:01:09]} 36. Nf1 {[%clk 0:00:07]}  b3 {[%clk 0:01:08]} 37. Rf2 {[%clk 0:00:07]}  Bxe4 {[%clk 0:01:07]} 38. fxe4 {[%clk 0:00:05]}  Qxe4+ {[%clk 0:01:07]} 39. Kg1 {[%clk 0:00:06]}  Rd1 {[%clk 0:01:04]} 40. Qg3 {[%clk 0:00:03]}  Bd4 {[%clk 0:00:58]} 41. Qh4 {[%clk 0:00:01]}  Bxf2+ {[%clk 0:00:57]} 42. Qxf2 {[%clk 0:00:02]}  Rxf1+ {[%clk 0:00:48]} 43. Qxf1 {[%clk 0:00:01]}  Rd3 {[%clk 0:00:41]} 44. Rc3 {[%clk 0:00:01]}  Qd4+ {[%clk 0:00:37]} 45. Kh2 {[%clk 0:00:01]}  Qh8+ {[%clk 0:00:34]} 46. Kg2 {[%clk 0:00:01]}  Qh3+ {[%clk 0:00:34]} 47. Kg1 {[%clk 0:00:02]}  Qg4+ {[%clk 0:00:32]} 48. Qg2 {[%clk 0:00:01]}  Rd1+ {[%clk 0:00:31]} 49. Kf2 {[%clk 0:00:01]}  Qxf4+ {[%clk 0:00:31]} 50. Rf3 {[%clk 0:00:02]}  Rd2+ {[%clk 0:00:31]} 51. Ke1 {[%clk 0:00:02]}  Rxg2 {[%clk 0:00:24]} 52. Rxf4 {[%clk 0:00:03]}  Rxb2 {[%clk 0:00:25]} 53. Ra4 {[%clk 0:00:03]}  Ra2 {[%clk 0:00:25]} 0-1


[Site "https://www.chess.com"]

[Event "Titled Tuesday Blitz December 7 2021"]
[White "Svane, Rasmus"]
[Black "Hindermann, Felix"]
[WhiteFideId "4657101"]
[BlackFideId "1305212"]
[WhiteElo "2944"]
[BlackElo "2483"]
[Result "1-0"]
[Round "01"]
[TimeControl "180+1"]
[Date "2021.12.07"]
[WhiteClock "0:00:12"]
[BlackClock "0:00:15"]

1. Nf3 {[%clk 0:03:00]}  e6 {[%clk 0:03:00]} 2. g3 {[%clk 0:02:59]}  b6 {[%clk 0:03:00]} 3. Bg2 {[%clk 0:03:00]}  Bb7 {[%clk 0:03:01]} 4. O-O {[%clk 0:03:00]}  f5 {[%clk 0:03:01]} 5. d3 {[%clk 0:03:00]}  Nf6 {[%clk 0:03:02]} 6. e4 {[%clk 0:02:58]}  g6 {[%clk 0:03:02]} 7. e5 {[%clk 0:02:43]}  Ng4 {[%clk 0:03:01]} 8. h3 {[%clk 0:02:37]}  Nh6 {[%clk 0:03:01]} 9. Bg5 {[%clk 0:02:36]}  Qc8 {[%clk 0:03:02]} 10. Bf6 {[%clk 0:02:30]}  Rg8 {[%clk 0:03:01]} 11. Ng5 {[%clk 0:02:28]}  Bxg2 {[%clk 0:02:58]} 12. Kxg2 {[%clk 0:02:29]}  Qb7+ {[%clk 0:02:56]} 13. Kh2 {[%clk 0:02:27]}  Nc6 {[%clk 0:02:54]} 14. Nxh7 {[%clk 0:02:25]}  Be7 {[%clk 0:02:54]} 15. Qd2 {[%clk 0:01:36]}  Nf7 {[%clk 0:02:49]} 16. Bxe7 {[%clk 0:01:29]}  Kxe7 {[%clk 0:02:49]} 17. d4 {[%clk 0:01:29]}  g5 {[%clk 0:02:47]} 18. Nc3 {[%clk 0:01:25]}  Rh8 {[%clk 0:02:37]} 19. Nf6 {[%clk 0:01:10]}  Ncxe5 {[%clk 0:02:22]} 20. dxe5 {[%clk 0:01:10]}  Nxe5 {[%clk 0:02:23]} 21. Nfd5+ {[%clk 0:01:06]}  Kf7 {[%clk 0:02:13]} 22. f4 {[%clk 0:01:00]}  Ng4+ {[%clk 0:02:11]} 23. Kg2 {[%clk 0:00:58]}  exd5 {[%clk 0:02:10]} 24. Qxd5+ {[%clk 0:00:49]}  Qxd5+ {[%clk 0:02:09]} 25. Nxd5 {[%clk 0:00:50]}  Nf6 {[%clk 0:01:57]} 26. Rad1 {[%clk 0:00:50]}  gxf4 {[%clk 0:01:43]} 27. Rxf4 {[%clk 0:00:48]}  Nxd5 {[%clk 0:01:37]} 28. Rxd5 {[%clk 0:00:48]}  Ke6 {[%clk 0:01:26]} 29. Rdxf5 {[%clk 0:00:47]}  d6 {[%clk 0:01:09]} 30. Rf7 {[%clk 0:00:42]}  c5 {[%clk 0:01:03]} 31. c4 {[%clk 0:00:36]}  Rh6 {[%clk 0:01:02]} 32. h4 {[%clk 0:00:31]}  Rg8 {[%clk 0:01:02]} 33. Kh3 {[%clk 0:00:29]}  d5 {[%clk 0:01:00]} 34. cxd5+ {[%clk 0:00:26]}  Kxd5 {[%clk 0:01:00]} 35. Rxa7 {[%clk 0:00:26]}  Rhg6 {[%clk 0:00:56]} 36. g4 {[%clk 0:00:25]}  Re6 {[%clk 0:00:57]} 37. Rd7+ {[%clk 0:00:25]}  Kc6 {[%clk 0:00:57]} 38. Rd2 {[%clk 0:00:20]}  Re3+ {[%clk 0:00:56]} 39. Kg2 {[%clk 0:00:20]}  b5 {[%clk 0:00:55]} 40. g5 {[%clk 0:00:17]}  c4 {[%clk 0:00:54]} 41. a3 {[%clk 0:00:17]}  Kc5 {[%clk 0:00:51]} 42. Rf5+ {[%clk 0:00:16]}  Kc6 {[%clk 0:00:52]} 43. h5 {[%clk 0:00:16]}  Rge8 {[%clk 0:00:29]} 44. g6 {[%clk 0:00:15]}  R8e4 {[%clk 0:00:29]} 45. Rg5 {[%clk 0:00:14]}  Rd3 {[%clk 0:00:23]} 46. Rf2 {[%clk 0:00:13]}  Re1 {[%clk 0:00:15]} 47. g7 {[%clk 0:00:12]}  Rdd1 {[%clk 0:00:15]} 48. g8=Q {[%clk 0:00:12]} 1-0


[Site "https://www.chess.com"]

[Event "Titled Tuesday Blitz December 7 2021"]
[White "Vakhlamov, Igor L."]
[Black "Daniel, Damian"]
[WhiteFideId "24126748"]
[BlackFideId "1183621"]
[WhiteElo "2726"]
[BlackElo "2412"]
[Result "1-0"]
[Round "01"]
[TimeControl "180+1"]
[Date "2021.12.07"]
[WhiteClock "0:00:03"]
[BlackClock "0:00:01"]

1. e4 {[%clk 0:02:33]}  c5 {[%clk 0:02:58]} 2. Nf3 {[%clk 0:02:27]}  d6 {[%clk 0:02:58]} 3. Nc3 {[%clk 0:02:27]}  Nf6 {[%clk 0:02:58]} 4. d4 {[%clk 0:02:28]}  cxd4 {[%clk 0:02:58]} 5. Qxd4 {[%clk 0:02:28]}  a6 {[%clk 0:02:57]} 6. Bc4 {[%clk 0:02:28]}  Nc6 {[%clk 0:02:57]} 7. Qd3 {[%clk 0:02:29]}  Bg4 {[%clk 0:02:51]} 8. Bb3 {[%clk 0:02:27]}  Bxf3 {[%clk 0:02:47]} 9. Qxf3 {[%clk 0:02:28]}  Nd4 {[%clk 0:02:47]} 10. Qg3 {[%clk 0:02:22]}  e6 {[%clk 0:02:32]} 11. O-O {[%clk 0:02:21]}  Rc8 {[%clk 0:02:29]} 12. Rd1 {[%clk 0:02:18]}  Rxc3 {[%clk 0:02:20]} 13. Qh4 {[%clk 0:02:00]}  Nxb3 {[%clk 0:02:11]} 14. cxb3 {[%clk 0:01:57]}  Rc2 {[%clk 0:02:09]} 15. Bg5 {[%clk 0:01:52]}  Be7 {[%clk 0:02:08]} 16. e5 {[%clk 0:01:46]}  Nd5 {[%clk 0:02:00]} 17. Bxe7 {[%clk 0:01:45]}  Qxe7 {[%clk 0:01:57]} 18. Qa4+ {[%clk 0:01:45]}  Qd7 {[%clk 0:01:53]} 19. Qe4 {[%clk 0:01:46]}  Qc6 {[%clk 0:01:43]} 20. exd6 {[%clk 0:01:44]}  O-O {[%clk 0:01:40]} 21. h3 {[%clk 0:01:42]}  Rc8 {[%clk 0:01:37]} 22. Qe5 {[%clk 0:01:37]}  Qc5 {[%clk 0:01:26]} 23. Rf1 {[%clk 0:01:27]}  Rd8 {[%clk 0:01:26]} 24. d7 {[%clk 0:01:25]}  Qc7 {[%clk 0:01:26]} 25. Qe4 {[%clk 0:01:23]}  Rc6 {[%clk 0:01:23]} 26. Rad1 {[%clk 0:01:21]}  Qxd7 {[%clk 0:01:23]} 27. Rd3 {[%clk 0:01:21]}  Qc7 {[%clk 0:01:13]} 28. Rdd1 {[%clk 0:01:01]}  Rc8 {[%clk 0:01:10]} 29. g3 {[%clk 0:00:59]}  g6 {[%clk 0:01:07]} 30. h4 {[%clk 0:00:59]}  Rc2 {[%clk 0:01:01]} 31. h5 {[%clk 0:00:58]}  Qd8 {[%clk 0:00:55]} 32. Qe5 {[%clk 0:00:53]}  Qc7 {[%clk 0:00:47]} 33. Qd4 {[%clk 0:00:49]}  Qb6 {[%clk 0:00:45]} 34. Qe5 {[%clk 0:00:48]}  Qb5 {[%clk 0:00:38]} 35. h6 {[%clk 0:00:43]}  Kf8 {[%clk 0:00:25]} 36. a4 {[%clk 0:00:42]}  Qc6 {[%clk 0:00:22]} 37. Rfe1 {[%clk 0:00:39]}  f6 {[%clk 0:00:18]} 38. Qd4 {[%clk 0:00:36]}  Kf7 {[%clk 0:00:15]} 39. Qe4 {[%clk 0:00:27]}  Rc7 {[%clk 0:00:15]} 40. b4 {[%clk 0:00:25]}  Qb6 {[%clk 0:00:15]} 41. Qf3 {[%clk 0:00:22]}  Qxb4 {[%clk 0:00:13]} 42. Kg2 {[%clk 0:00:16]}  Qc5 {[%clk 0:00:13]} 43. Re4 {[%clk 0:00:13]}  Qc6 {[%clk 0:00:13]} 44. Rde1 {[%clk 0:00:13]}  e5 {[%clk 0:00:10]} 45. Rxe5 {[%clk 0:00:12]}  Ne7 {[%clk 0:00:08]} 46. R5e4 {[%clk 0:00:12]}  Nf5 {[%clk 0:00:07]} 47. Kg1 {[%clk 0:00:11]}  Re7 {[%clk 0:00:05]} 48. Qd3 {[%clk 0:00:09]}  Rxe4 {[%clk 0:00:02]} 49. Rxe4 {[%clk 0:00:10]}  Ne7 {[%clk 0:00:02]} 50. Qb3+ {[%clk 0:00:10]}  Kf8 {[%clk 0:00:01]} 51. Qe3 {[%clk 0:00:09]}  Rc1+ {[%clk 0:00:02]} 52. Kh2 {[%clk 0:00:09]}  Qc5 {[%clk 0:00:03]} 53. Qf3 {[%clk 0:00:06]}  Qh5+ {[%clk 0:00:03]} 54. Qxh5 {[%clk 0:00:06]}  gxh5 {[%clk 0:00:03]} 55. Rb4 {[%clk 0:00:05]}  Rc2 {[%clk 0:00:03]} 56. Kg2 {[%clk 0:00:05]}  b5 {[%clk 0:00:03]} 57. axb5 {[%clk 0:00:05]}  axb5 {[%clk 0:00:04]} 58. Rxb5 {[%clk 0:00:06]}  Kf7 {[%clk 0:00:04]} 59. Rxh5 {[%clk 0:00:04]}  Rxb2 {[%clk 0:00:04]} 60. Rh4 {[%clk 0:00:05]}  Kg6 {[%clk 0:00:04]} 61. g4 {[%clk 0:00:04]}  Nd5 {[%clk 0:00:03]} 62. Kg3 {[%clk 0:00:04]}  Ne7 {[%clk 0:00:03]} 63. f3 {[%clk 0:00:04]}  Rb3 {[%clk 0:00:03]} 64. Rh1 {[%clk 0:00:04]}  Ra3 {[%clk 0:00:03]} 65. Kf4 {[%clk 0:00:04]}  Nc6 {[%clk 0:00:03]} 66. Kg3 {[%clk 0:00:03]}  Ne5 {[%clk 0:00:03]} 67. Rf1 {[%clk 0:00:02]}  Kxh6 {[%clk 0:00:04]} 68. Kf4 {[%clk 0:00:03]}  Kg6 {[%clk 0:00:04]} 69. Ke4 {[%clk 0:00:03]}  Ra4+ {[%clk 0:00:03]} 70. Ke3 {[%clk 0:00:03]}  Ra3+ {[%clk 0:00:03]} 71. Ke4 {[%clk 0:00:03]}  Nd3 {[%clk 0:00:03]} 72. f4 {[%clk 0:00:03]}  Nc5+ {[%clk 0:00:03]} 73. Kd5 {[%clk 0:00:03]}  Nd3 {[%clk 0:00:01]} 74. Ke4 {[%clk 0:00:03]} 1-0


[Site "https://www.chess.com"]

[Event "Titled Tuesday Blitz December 7 2021"]
[White "Van Dael, Siem"]
[Black "Leitao, Rafael"]
[WhiteFideId "1049771"]
[BlackFideId "2101246"]
[WhiteElo "2089"]
[BlackElo "2609"]
[Result "0-1"]
[Round "01"]
[TimeControl "180+1"]
[Date "2021.12.07"]
[WhiteClock "0:00:03"]
[BlackClock "0:00:54"]

1. e4 {[%clk 0:02:59]}  e5 {[%clk 0:02:59]} 2. Nf3 {[%clk 0:02:58]}  Nc6 {[%clk 0:02:59]} 3. Bc4 {[%clk 0:02:58]}  Nf6 {[%clk 0:02:57]} 4. Ng5 {[%clk 0:02:58]}  d5 {[%clk 0:02:57]} 5. exd5 {[%clk 0:02:58]}  Na5 {[%clk 0:02:58]} 6. Bb5+ {[%clk 0:02:58]}  c6 {[%clk 0:02:58]} 7. dxc6 {[%clk 0:02:58]}  bxc6 {[%clk 0:02:59]} 8. Bd3 {[%clk 0:02:57]}  Nd5 {[%clk 0:02:59]} 9. h4 {[%clk 0:02:57]}  Nf4 {[%clk 0:02:46]} 10. Bf1 {[%clk 0:02:54]}  h6 {[%clk 0:02:43]} 11. Nf3 {[%clk 0:02:48]}  Bg4 {[%clk 0:02:42]} 12. d4 {[%clk 0:02:17]}  Bd6 {[%clk 0:02:22]} 13. Bxf4 {[%clk 0:02:02]}  exf4 {[%clk 0:02:22]} 14. Bd3 {[%clk 0:02:01]}  O-O {[%clk 0:02:21]} 15. O-O {[%clk 0:02:01]}  Rb8 {[%clk 0:02:11]} 16. b3 {[%clk 0:01:52]}  c5 {[%clk 0:02:08]} 17. c3 {[%clk 0:01:25]}  cxd4 {[%clk 0:01:42]} 18. cxd4 {[%clk 0:01:20]}  Be7 {[%clk 0:01:43]} 19. Bc2 {[%clk 0:01:05]}  Nc6 {[%clk 0:01:27]} 20. Qd3 {[%clk 0:00:35]}  g6 {[%clk 0:01:26]} 21. a3 {[%clk 0:00:34]}  Bxf3 {[%clk 0:01:23]} 22. Qxf3 {[%clk 0:00:29]}  Nxd4 {[%clk 0:01:21]} 23. Qd3 {[%clk 0:00:28]}  Bf6 {[%clk 0:01:14]} 24. Nd2 {[%clk 0:00:17]}  Nxc2 {[%clk 0:01:11]} 25. Qxc2 {[%clk 0:00:18]}  Bxa1 {[%clk 0:01:10]} 26. Rxa1 {[%clk 0:00:19]}  Qxh4 {[%clk 0:01:09]} 27. Ne4 {[%clk 0:00:17]}  Qe7 {[%clk 0:01:07]} 28. Nc5 {[%clk 0:00:09]}  f3 {[%clk 0:01:00]} 29. Rd1 {[%clk 0:00:04]}  Qg5 {[%clk 0:00:57]} 30. g3 {[%clk 0:00:03]}  Qh5 {[%clk 0:00:54]} 0-1


[Site "https://www.chess.com"]

[Event "Titled Tuesday Blitz December 7 2021"]
[White "Vidit, Santosh Gujrathi"]
[Black "Orlov, Georgi"]
[WhiteFideId "5029465"]
[BlackFideId "2011271"]
[WhiteElo "3014"]
[BlackElo "2499"]
[Result "1-0"]
[Round "01"]
[TimeControl "180+1"]
[Date "2021.12.07"]
[WhiteClock "0:00:13"]
[BlackClock "0:00:08"]

1. Nf3 {[%clk 0:03:00]}  Nf6 {[%clk 0:02:42]} 2. c4 {[%clk 0:02:59]}  e6 {[%clk 0:02:41]} 3. g3 {[%clk 0:02:48]}  a6 {[%clk 0:02:39]} 4. d4 {[%clk 0:02:46]}  c5 {[%clk 0:02:37]} 5. d5 {[%clk 0:02:43]}  b5 {[%clk 0:02:36]} 6. Bg2 {[%clk 0:02:26]}  exd5 {[%clk 0:02:31]} 7. cxd5 {[%clk 0:02:25]}  d6 {[%clk 0:02:31]} 8. O-O {[%clk 0:02:22]}  Be7 {[%clk 0:02:26]} 9. Re1 {[%clk 0:02:20]}  O-O {[%clk 0:02:25]} 10. e4 {[%clk 0:02:19]}  Nbd7 {[%clk 0:02:15]} 11. a4 {[%clk 0:02:18]}  Bb7 {[%clk 0:02:10]} 12. Bf4 {[%clk 0:02:11]}  Nh5 {[%clk 0:02:05]} 13. Be3 {[%clk 0:02:08]}  Nb6 {[%clk 0:01:47]} 14. b3 {[%clk 0:02:04]}  bxa4 {[%clk 0:01:35]} 15. bxa4 {[%clk 0:02:04]}  Nc4 {[%clk 0:01:34]} 16. Nbd2 {[%clk 0:01:58]}  Nxe3 {[%clk 0:01:33]} 17. Rxe3 {[%clk 0:01:59]}  a5 {[%clk 0:01:31]} 18. Rb1 {[%clk 0:01:44]}  Ba6 {[%clk 0:01:30]} 19. Bf1 {[%clk 0:01:45]}  Bxf1 {[%clk 0:01:25]} 20. Qxf1 {[%clk 0:01:46]}  Nf6 {[%clk 0:01:25]} 21. Rb5 {[%clk 0:01:43]}  Ng4 {[%clk 0:01:24]} 22. Reb3 {[%clk 0:01:42]}  Bf6 {[%clk 0:01:22]} 23. Nc4 {[%clk 0:01:38]}  Re8 {[%clk 0:01:18]} 24. Qd3 {[%clk 0:01:32]}  Qe7 {[%clk 0:01:11]} 25. h3 {[%clk 0:01:25]}  Ne5 {[%clk 0:01:10]} 26. Nfxe5 {[%clk 0:01:26]}  Bxe5 {[%clk 0:01:10]} 27. Rb7 {[%clk 0:01:16]}  Qf6 {[%clk 0:01:04]} 28. Kg2 {[%clk 0:01:15]}  Bd4 {[%clk 0:01:02]} 29. f3 {[%clk 0:01:03]}  h5 {[%clk 0:00:54]} 30. R3b6 {[%clk 0:00:57]}  Red8 {[%clk 0:00:50]} 31. h4 {[%clk 0:00:52]}  g5 {[%clk 0:00:47]} 32. hxg5 {[%clk 0:00:52]}  Qxg5 {[%clk 0:00:47]} 33. Qd2 {[%clk 0:00:53]}  Qf6 {[%clk 0:00:40]} 34. Qf4 {[%clk 0:00:52]}  Qxf4 {[%clk 0:00:38]} 35. gxf4 {[%clk 0:00:53]}  Kh8 {[%clk 0:00:32]} 36. Nxd6 {[%clk 0:00:40]}  Rg8+ {[%clk 0:00:33]} 37. Kh3 {[%clk 0:00:38]}  Rg1 {[%clk 0:00:27]} 38. Nxf7+ {[%clk 0:00:37]}  Kg8 {[%clk 0:00:27]} 39. Nh6+ {[%clk 0:00:28]}  Kh8 {[%clk 0:00:27]} 40. Nf5 {[%clk 0:00:25]}  Bf2 {[%clk 0:00:25]} 41. Rh6+ {[%clk 0:00:21]}  Kg8 {[%clk 0:00:24]} 42. d6 {[%clk 0:00:17]}  c4 {[%clk 0:00:19]} 43. Rc7 {[%clk 0:00:15]}  Rd8 {[%clk 0:00:08]} 44. Rxc4 {[%clk 0:00:13]} 1-0


[Site "https://www.chess.com"]

[Event "Titled Tuesday Blitz December 7 2021"]
[White "Xiong, Jeffery"]
[Black "Issani, Nameer"]
[WhiteFideId "2047640"]
[BlackFideId "2619130"]
[WhiteElo "3042"]
[BlackElo "2505"]
[Result "1-0"]
[Round "01"]
[TimeControl "180+1"]
[Date "2021.12.07"]
[WhiteClock "0:01:22"]
[BlackClock "0:00:38"]

1. d4 {[%clk 0:02:59]}  Nf6 {[%clk 0:02:59]} 2. c4 {[%clk 0:03:00]}  e6 {[%clk 0:02:59]} 3. Nc3 {[%clk 0:02:59]}  Bb4 {[%clk 0:03:00]} 4. Nf3 {[%clk 0:03:00]}  O-O {[%clk 0:03:00]} 5. Bg5 {[%clk 0:03:00]}  h6 {[%clk 0:02:58]} 6. Bh4 {[%clk 0:03:01]}  d5 {[%clk 0:02:59]} 7. e3 {[%clk 0:03:00]}  Nbd7 {[%clk 0:02:58]} 8. Rc1 {[%clk 0:02:58]}  c6 {[%clk 0:02:54]} 9. Bd3 {[%clk 0:02:56]}  Re8 {[%clk 0:02:44]} 10. O-O {[%clk 0:02:56]}  Bd6 {[%clk 0:02:35]} 11. a3 {[%clk 0:02:49]}  g5 {[%clk 0:02:24]} 12. Bg3 {[%clk 0:02:49]}  Bxg3 {[%clk 0:02:23]} 13. hxg3 {[%clk 0:02:35]}  e5 {[%clk 0:02:16]} 14. Be2 {[%clk 0:02:29]}  e4 {[%clk 0:02:07]} 15. Nd2 {[%clk 0:02:29]}  Nb6 {[%clk 0:02:07]} 16. cxd5 {[%clk 0:02:00]}  cxd5 {[%clk 0:02:05]} 17. Nb3 {[%clk 0:01:59]}  a6 {[%clk 0:01:50]} 18. Nc5 {[%clk 0:01:59]}  Qe7 {[%clk 0:01:35]} 19. Qb3 {[%clk 0:01:59]}  Qd6 {[%clk 0:01:30]} 20. Rc2 {[%clk 0:01:59]}  h5 {[%clk 0:01:26]} 21. Qb4 {[%clk 0:01:56]}  h4 {[%clk 0:01:22]} 22. Nxa6 {[%clk 0:01:49]}  Qd8 {[%clk 0:01:04]} 23. Nc5 {[%clk 0:01:46]}  Ng4 {[%clk 0:00:45]} 24. Nxb7 {[%clk 0:01:37]}  Qf6 {[%clk 0:00:45]} 25. Nd6 {[%clk 0:01:27]}  Re6 {[%clk 0:00:45]} 26. Nxc8 {[%clk 0:01:23]}  hxg3 {[%clk 0:00:38]} 27. Bxg4 {[%clk 0:01:22]} 1-0


[Site "https://www.chess.com"]

[Event "Titled Tuesday Blitz December 7 2021"]
[White "Yakubboev, Nodirbek"]
[Black "Pourkashiyan, Atousa"]
[WhiteFideId "14203987"]
[BlackFideId "12502014"]
[WhiteElo "2972"]
[BlackElo "2488"]
[Result "1-0"]
[Round "01"]
[TimeControl "180+1"]
[Date "2021.12.07"]
[WhiteClock "0:00:03"]
[BlackClock "0:00:08"]

1. e4 {[%clk 0:02:59]}  e5 {[%clk 0:02:34]} 2. Nf3 {[%clk 0:02:56]}  Nf6 {[%clk 0:02:34]} 3. Nxe5 {[%clk 0:02:54]}  d6 {[%clk 0:02:34]} 4. Nc4 {[%clk 0:02:54]}  Nxe4 {[%clk 0:02:34]} 5. Qe2 {[%clk 0:02:54]}  Qe7 {[%clk 0:02:34]} 6. Ne3 {[%clk 0:02:55]}  Be6 {[%clk 0:02:31]} 7. b3 {[%clk 0:02:51]}  Nc6 {[%clk 0:02:27]} 8. Bb2 {[%clk 0:02:44]}  O-O-O {[%clk 0:02:27]} 9. g3 {[%clk 0:02:40]}  d5 {[%clk 0:02:25]} 10. Bg2 {[%clk 0:02:40]}  Qd7 {[%clk 0:02:22]} 11. d3 {[%clk 0:02:34]}  Nf6 {[%clk 0:02:18]} 12. Nd2 {[%clk 0:02:34]}  Bc5 {[%clk 0:02:09]} 13. O-O-O {[%clk 0:02:12]}  Rhe8 {[%clk 0:02:05]} 14. Qf1 {[%clk 0:01:43]}  Qd6 {[%clk 0:02:04]} 15. Kb1 {[%clk 0:01:37]}  Ba3 {[%clk 0:02:04]} 16. Ba1 {[%clk 0:01:33]}  Qb4 {[%clk 0:01:56]} 17. d4 {[%clk 0:01:16]}  Qa5 {[%clk 0:01:55]} 18. c3 {[%clk 0:01:13]}  Bf8 {[%clk 0:01:36]} 19. h3 {[%clk 0:01:05]}  Qb6 {[%clk 0:01:33]} 20. Qd3 {[%clk 0:00:59]}  a5 {[%clk 0:01:33]} 21. Bb2 {[%clk 0:00:59]}  a4 {[%clk 0:01:32]} 22. b4 {[%clk 0:00:50]}  Na7 {[%clk 0:00:58]} 23. a3 {[%clk 0:00:49]}  Nb5 {[%clk 0:00:54]} 24. Rhe1 {[%clk 0:00:47]}  Nd6 {[%clk 0:00:54]} 25. g4 {[%clk 0:00:41]}  Nfe4 {[%clk 0:00:54]} 26. Nxe4 {[%clk 0:00:31]}  Nxe4 {[%clk 0:00:54]} 27. Qc2 {[%clk 0:00:30]}  Nd6 {[%clk 0:00:50]} 28. Nxd5 {[%clk 0:00:27]}  Qb5 {[%clk 0:00:39]} 29. Rxe6 {[%clk 0:00:19]}  Rxe6 {[%clk 0:00:30]} 30. Ne3 {[%clk 0:00:20]}  Nc4 {[%clk 0:00:27]} 31. Bc1 {[%clk 0:00:05]}  Rde8 {[%clk 0:00:16]} 32. Bf1 {[%clk 0:00:05]}  Nxe3 {[%clk 0:00:16]} 33. fxe3 {[%clk 0:00:05]}  Qd7 {[%clk 0:00:13]} 34. Bd3 {[%clk 0:00:05]}  g6 {[%clk 0:00:12]} 35. e4 {[%clk 0:00:05]}  Bg7 {[%clk 0:00:11]} 36. Rf1 {[%clk 0:00:03]}  f6 {[%clk 0:00:10]} 37. Bd2 {[%clk 0:00:03]}  Kb8 {[%clk 0:00:09]} 38. Re1 {[%clk 0:00:03]}  Bh6 {[%clk 0:00:08]} 39. Bxh6 {[%clk 0:00:03]}  g5 {[%clk 0:00:09]} 40. Bc4 {[%clk 0:00:02]}  Rc6 {[%clk 0:00:08]} 41. Bb5 {[%clk 0:00:02]}  Qf7 {[%clk 0:00:08]} 42. Bxc6 {[%clk 0:00:02]}  bxc6 {[%clk 0:00:08]} 43. Qxa4 {[%clk 0:00:03]}  Qg6 {[%clk 0:00:09]} 44. Qxc6 {[%clk 0:00:03]}  Rd8 {[%clk 0:00:08]} 45. Rf1 {[%clk 0:00:03]}  Qxh6 {[%clk 0:00:08]} 46. Rxf6 {[%clk 0:00:02]}  Qg7 {[%clk 0:00:08]} 47. Qb5+ {[%clk 0:00:02]}  Kc8 {[%clk 0:00:08]} 48. Ra6 {[%clk 0:00:03]} 1-0


[Site "https://www.chess.com"]